bitfinex/quotes_ETHUSD_20260126
["timestamp","ask_amount","ask_price","bid_price","bid_amount"]
[1769439198498,13.5848072,2913.8,2911.5,13.99739115]
[1769439198499,0.719,2913.7,2911.5,13.99739115]
[1769439198690,0.719,2913.7,2911.5,13.13874359]
[1769439198932,1.43038072,2913.6,2911.6,14.45261795]
[1769439199418,14.0355457,2913.6,2911.6,14.45261795]
[1769439199586,0.85810393,2913.4,2911.6,13.13874359]
[1769439200108,0.85810393,2913.4,2911.5,0.85863707]
[1769439200426,13.46326891,2913.4,2911.2,13.13874359]
[1769439200919,13.32416498,2913.3,2911.3,13.13874359]
[1769439201091,12.60516498,2913.3,2911.3,13.99743772]
[1769439201277,2.06532689,2913.2,2911.4,1.74324113]
[1769439201479,14.67049187,2913.2,2911.4,1.74324113]
[1769439201678,14.18235728,2913.1,2910.9,13.99758449]
[1769439202110,13.46335728,2913.1,2910.9,13.99758449]
[1769439202408,13.32416498,2913.0,2910.9,13.13874359]
[1769439203109,13.32416498,2912.9,2910.9,13.13874359]
[1769439203283,12.60516498,2912.9,2910.9,13.13874359]
[1769439203484,1.9795165,2912.8,2911.0,1.39976132]
[1769439203885,1.2605165,2912.8,2911.0,15.39730597]
[1769439204085,1.57725596,2912.9,2911.0,15.39730597]
[1769439204479,14.18242094,2912.9,2911.0,14.53850491]
[1769439205013,0.719,2912.8,2911.0,1.39976132]
[1769439205183,12.60516498,2912.7,2910.5,13.13874359]
[1769439205380,3.4330049,2913.1,2911.1,13.13874359]
[1769439205381,0.8581923,2913.1,2911.1,13.13874359]
[1769439205585,1.5771923,2913.1,2911.1,13.13874359]
[1769439205803,0.8581923,2913.1,2911.1,13.13874359]
[1769439206002,0.002,2912.8,2911.2,13.99749599]
[1769439206204,0.002,2912.8,2911.3,14.88199739]
[1769439207027,0.002,2912.8,2911.3,1.7432538]
[1769439207184,0.002,2912.8,2911.1,0.85877581]
[1769439207390,12.60516498,2912.6,2910.4,3.43593452]
[1769439207592,12.60516498,2912.6,2910.7,13.13874359]
[1769439208215,0.719,2912.5,2910.7,13.13874359]
[1769439208415,12.60516498,2912.7,2910.8,15.31148836]
[1769439208584,0.719,2912.7,2910.8,15.31148836]
[1769439208783,0.002,2912.8,2910.8,15.31148836]
[1769439209195,0.86028903,2912.8,2910.8,15.31148836]
[1769439209393,0.002,2912.8,2910.8,15.31148836]
[1769439209686,0.002,2912.8,2911.0,13.13874359]
[1769439209910,0.002,2912.8,2911.1,0.8587819]
[1769439210108,0.002,2912.8,2911.2,13.13874359]
[1769439210692,0.002,2912.8,2911.0,0.85879431]
[1769439210898,0.002,2912.8,2911.0,13.13874359]
[1769439210899,12.60716498,2912.8,2911.0,13.13874359]
[1769439211102,13.93778148,2912.7,2910.6,13.13874359]
[1769439211294,12.60516498,2912.5,2910.1,13.13874359]
[1769439211501,12.60516498,2912.4,2910.1,13.13874359]
[1769439211695,12.60516498,2912.4,2910.2,0.85902992]
[1769439211914,12.60516498,2912.4,2910.1,16.57502702]
[1769439212108,12.60516498,2912.2,2910.1,13.13874359]
[1769439212310,12.60516498,2912.2,2910.2,0.85904119]
[1769439212512,1.57942682,2912.3,2910.2,13.99778478]
[1769439212713,14.79611826,2912.7,2910.2,13.99778478]
[1769439212912,12.60516498,2912.5,2910.2,13.99778478]
[1769439213123,0.719,2912.4,2910.4,13.13874359]
[1769439213638,0.85833678,2912.7,2910.4,13.13874359]
[1769439213946,0.86030025,2912.8,2910.4,13.13874359]
[1769439214124,0.4293423,2912.7,2910.6,13.13874359]
[1769439214997,0.4293423,2912.7,2910.8,13.13874359]
[1769439215199,0.002,2912.8,2910.8,13.13874359]
[1769439216026,0.002,2912.8,2911.3,0.2335703]
[1769439216209,0.002,2912.8,2911.4,13.13874359]
[1769439217324,0.002,2912.8,2911.1,0.8587819]
[1769439217728,0.002,2912.8,2911.1,13.99752549]
[1769439217919,0.002,2912.8,2911.2,1.74326531]
[1769439218227,0.002,2912.8,2911.3,0.8587229]
[1769439218649,0.002,2912.8,2911.2,1.74326531]
[1769439219343,0.002,2912.8,2910.7,0.8588978]
[1769439219344,12.60716498,2912.8,2910.7,0.8588978]
[1769439219527,12.60716498,2912.8,2910.6,13.99865578]
[1769439219855,12.60716498,2912.8,2910.7,0.85889888]
[1769439220135,12.60516498,2912.6,2910.6,13.99865348]
[1769439220338,1.34634751,2912.5,2910.8,13.13874359]
[1769439220506,0.86029685,2912.8,2910.8,13.13874359]
[1769439220699,13.46546183,2912.8,2910.8,13.13874359]
[1769439220920,12.60516498,2912.5,2910.6,0.001]
[1769439221118,0.72,2912.4,2910.6,0.001]
[1769439221322,1.3325165,2912.3,2910.6,0.001]
[1769439221534,1.3325165,2912.3,2910.6,13.13974359]
[1769439221708,0.72,2912.5,2910.6,13.13974359]
[1769439222134,0.002,2912.8,2910.7,13.99764351]
[1769439222334,0.72,2912.6,2910.7,13.99764351]
[1769439222542,0.002,2912.8,2910.9,13.13874359]
[1769439224211,0.002,2912.8,2911.0,13.99755499]
[1769439224538,0.002,2912.8,2911.1,14.88202365]
[1769439224539,1.2627165,2912.8,2911.1,14.88202365]
[1769439224742,0.002,2912.8,2911.1,14.88202365]
[1769439224907,0.002,2912.8,2911.3,13.13874359]
[1769439225107,0.002,2912.8,2911.5,13.13874359]
[1769439225314,0.002,2912.8,2911.2,0.2335703]
[1769439225315,0.002,2912.8,2911.7,13.13874359]
[1769439225651,0.002,2912.8,2911.2,13.13874359]
[1769439225844,0.002,2912.8,2911.3,1.48820237]
[1769439226215,0.002,2912.8,2910.7,13.13874359]
[1769439226216,12.60716498,2912.8,2910.7,13.13874359]
[1769439226642,12.60716498,2912.8,2910.3,0.85901011]
[1769439226843,0.002,2912.8,2911.4,13.13874359]
[1769439227446,0.002,2912.8,2911.0,0.85879416]
[1769439227955,0.002,2912.8,2910.9,13.13874359]
[1769439228246,13.46546777,2912.8,2911.0,1.31387436]
[1769439228417,13.46544807,2912.8,2911.0,1.31387436]
[1769439228738,0.86028309,2912.8,2911.0,14.01840995]
[1769439228971,0.002,2912.8,2911.1,0.8587819]
[1769439229139,0.002,2912.8,2911.1,13.56331749]
[1769439229322,0.002,2912.8,2911.3,12.70453559]
[1769439229844,0.86028357,2912.8,2911.2,1.83123195]
[1769439230027,0.86028357,2912.8,2910.8,16.13998111]
[1769439230028,1.58028357,2912.8,2910.8,12.70453559]
[1769439230224,15.46377434,2912.8,2910.8,12.70453559]
[1769439230617,15.46377434,2912.8,2910.8,13.56340269]
[1769439230948,0.002,2912.6,2911.0,12.70453559]
[1769439231143,0.002,2912.6,2911.2,12.70453559]
[1769439231349,0.002,2912.6,2911.3,1.27045356]
[1769439232767,0.002,2912.6,2911.5,12.70453559]
[1769439234253,0.002,2912.6,2911.6,13.56317001]
[1769439234857,0.002,2912.6,2911.5,0.8586456]
[1769439235339,0.002,2912.6,2911.5,0.85866178]
[1769439235759,0.002,2912.6,2911.6,0.45269998]
[1769439235933,0.002,2912.6,2911.6,13.15723557]
[1769439236141,0.002,2912.8,2911.6,13.15723557]
[1769439236649,0.002,2912.8,2911.7,0.85860493]
[1769439237028,0.002,2912.8,2911.6,16.5917626]
[1769439237029,0.002,2912.8,2911.6,14.01585276]
[1769439237237,0.002,2912.8,2911.7,1.74504105]
[1769439237558,0.002,2912.8,2911.7,14.44957664]
[1769439237879,0.002,2912.8,2911.7,1.74504105]
[1769439238026,0.002,2912.8,2911.2,12.70453559]
[1769439238454,0.002,2912.8,2911.2,0.85874975]
[1769439238664,0.002,2912.8,2910.8,13.563406]
[1769439239580,13.88549077,2912.8,2910.8,13.563406]
[1769439240677,0.002,2912.8,2911.0,12.70453559]
[1769439240830,0.002,2912.8,2911.4,12.70453559]
[1769439242630,0.002,2912.8,2911.5,13.5631995]
[1769439242825,0.002,2912.8,2911.5,12.70453559]
[1769439243178,13.88549077,2912.8,2911.1,14.85712797]
[1769439243335,13.88549077,2912.8,2911.1,2.15259238]
[1769439243534,1.38854908,2912.7,2911.0,0.85879986]
[1769439243732,15.27203985,2912.7,2910.8,12.70453559]
[1769439243932,15.27203985,2912.7,2911.0,0.001]
[1769439244136,15.27203985,2912.7,2911.0,0.8598089]
[1769439244137,0.002,2912.6,2911.0,0.8598089]
[1769439244366,0.002,2912.6,2911.0,0.85979583]
[1769439244664,1.52740399,2912.5,2911.0,0.001]
[1769439245037,2.38578037,2912.5,2911.0,0.001]
[1769439245759,16.26927114,2912.5,2911.0,0.001]
[1769439247661,1.52740399,2912.5,2911.0,12.70553559]
[1769439247874,0.002,2912.6,2911.2,12.70453559]
[1769439248697,0.86034161,2912.6,2911.0,0.001]
[1769439249143,13.88549077,2912.6,2911.0,0.001]
[1769439249350,15.61537416,2912.5,2911.0,0.001]
[1769439249781,13.88349077,2912.3,2909.0,3.43755925]
[1769439250077,1.73188339,2912.5,2909.7,12.70453559]
[1769439250078,13.88349077,2911.9,2909.7,12.70453559]
[1769439250288,1.38834908,2911.8,2910.3,12.70453559]
[1769439250492,1.73188339,2912.5,2910.7,0.85889167]
[1769439250656,0.002,2912.6,2910.7,0.85889167]
[1769439251046,13.88549077,2912.6,2910.7,0.85889167]
[1769439251246,0.85836909,2912.5,2910.4,13.79709434]
[1769439251864,0.002,2912.6,2910.4,13.79709434]
[1769439253067,0.86034357,2912.6,2910.4,13.79709434]
[1769439253247,0.86034357,2912.6,2910.3,11.39396017]
[1769439253248,0.002,2912.6,2910.7,0.85889992]
[1769439253646,0.002,2912.6,2911.1,12.70453559]
[1769439254262,0.002,2912.6,2911.4,12.70453559]
[1769439254457,0.002,2912.6,2911.5,12.70453559]
[1769439255082,13.88349077,2913.9,2911.8,12.70453559]
[1769439255387,1.38834908,2913.8,2912.1,0.858487]
[1769439255555,0.8579077,2914.1,2912.1,0.858487]
[1769439256189,0.85773844,2914.7,2912.2,12.93810589]
[1769439257076,14.74116733,2914.9,2912.2,12.93810589]
[1769439257277,13.88349077,2914.9,2912.4,12.93810589]
[1769439257585,1.47411396,2914.8,2912.6,12.93810589]
[1769439257966,0.85963522,2915.0,2912.6,12.93810589]
[1769439258161,0.85964664,2915.0,2912.6,12.93810589]
[1769439258380,0.002,2915.0,2912.6,12.93810589]
[1769439258579,0.85963299,2915.0,2912.6,12.93810589]
[1769439259090,0.002,2915.0,2913.2,13.44048277]
[1769439259296,0.002,2915.0,2913.5,0.85807448]
[1769439259456,0.002,2915.0,2913.4,13.44048277]
[1769439259457,0.002,2915.0,2913.4,14.29856627]
[1769439259657,0.002,2915.0,2913.4,14.29857579]
[1769439260360,0.002,2915.0,2913.3,1.34404828]
[1769439260575,13.16584117,2915.0,2913.2,0.85816197]
[1769439260768,13.16584117,2915.0,2913.3,0.8581333]
[1769439261200,0.002,2915.0,2913.4,0.8581028]
[1769439261396,0.002,2915.0,2913.4,13.44048277]
[1769439261554,13.16584117,2915.0,2912.9,13.44048277]
[1769439261761,1.31658412,2914.9,2913.4,0.85810151]
[1769439261996,0.002,2915.0,2913.4,14.29858428]
[1769439263671,0.002,2915.0,2913.5,13.67405307]
[1769439265476,0.002,2915.0,2913.6,14.2985278]
[1769439265996,0.002,2915.0,2913.6,13.44048277]
[1769439266198,0.002,2915.0,2913.5,0.85807381]
[1769439266368,0.002,2915.0,2913.5,0.85807052]
[1769439266578,0.002,2915.0,2913.5,1.28712786]
[1769439266781,0.002,2915.0,2913.7,13.44048277]
[1769439267497,0.002,2915.0,2913.9,13.44048277]
[1769439267815,0.002,2915.5,2913.9,13.44048277]
[1769439267993,13.16584117,2915.5,2913.5,13.44048277]
[1769439268188,14.48042529,2915.4,2913.5,13.44048277]
[1769439269403,14.48042529,2915.4,2913.5,14.29855412]
[1769439269716,14.02138584,2915.3,2913.6,0.001]
[1769439269921,0.002,2914.8,2913.6,0.001]
[1769439271298,13.16584117,2914.8,2913.6,0.001]
[1769439271511,14.48042529,2914.7,2913.6,0.001]
[1769439271713,0.85775063,2914.6,2913.6,0.001]
[1769439272415,14.0215918,2914.6,2913.6,0.001]
[1769439274139,14.0215918,2914.6,2912.5,1.37965339]
[1769439274342,8.678149,2914.1,2911.8,13.44048277]
[1769439274542,13.16384117,2914.1,2911.8,13.44048277]
[1769439275541,6.66823441,2914.3,2911.2,13.44048277]
[1769439275542,13.16384117,2913.9,2911.2,13.44048277]
[1769439275750,13.29184117,2913.6,2911.4,13.44048277]
[1769439276838,13.16384117,2913.4,2911.3,1.34404828]
[1769439277145,13.16384117,2913.4,2911.1,0.8587636]
[1769439277452,13.16384117,2913.4,2911.2,0.85874459]
[1769439277946,13.16384117,2913.2,2911.1,13.44048277]
[1769439278146,13.16384117,2913.2,2911.1,14.2992623]
[1769439278927,0.85813338,2913.3,2911.1,14.2992623]
[1769439279152,13.16384117,2913.6,2911.7,13.44048277]
[1769439279355,1.54767757,2913.8,2911.9,13.44048277]
[1769439279665,1.31658412,2914.7,2912.7,13.44048277]
[1769439279828,0.002,2914.8,2912.9,13.44048277]
[1769439280026,13.16584117,2914.8,2912.4,13.44048277]
[1769439280227,13.88484117,2914.8,2912.4,14.29887825]
[1769439280438,13.16384117,2914.6,2912.7,0.85830973]
[1769439280656,13.16384117,2914.6,2912.7,13.44048277]
[1769439280843,14.49302529,2914.5,2912.2,13.44048277]
[1769439281050,14.49302529,2914.5,2912.2,14.29892049]
[1769439281266,14.49302529,2914.5,2912.2,13.44048277]
[1769439281438,13.16384117,2913.7,2911.7,13.44048277]
[1769439281769,1.31638412,2913.6,2911.8,1.42991103]
[1769439281950,14.02191565,2913.5,2911.8,1.42991103]
[1769439282147,14.02191565,2913.5,2911.6,0.85862886]
[1769439282337,14.02191565,2913.5,2911.5,0.85864039]
[1769439282726,14.02191565,2913.5,2911.6,0.85863413]
[1769439282931,2.17444739,2913.6,2911.6,13.44048277]
[1769439283130,2.17444739,2913.6,2911.3,0.001]
[1769439283131,0.85795669,2913.9,2911.8,14.29904816]
[1769439283629,14.02178936,2914.0,2912.0,13.44048277]
[1769439284051,14.02178936,2914.0,2912.0,14.29899562]
[1769439285066,0.128,2914.2,2912.0,14.29899562]
[1769439285232,0.85786836,2914.2,2912.0,14.29899562]
[1769439285437,0.4289327,2914.1,2912.2,13.44048277]
[1769439285743,0.4289327,2914.1,2912.1,1.77331757]
[1769439285744,13.59277387,2914.1,2912.1,1.77331757]
[1769439285940,13.59277387,2914.1,2912.0,0.85851536]
[1769439286144,0.85792724,2914.0,2911.8,16.87477461]
[1769439286365,0.85792724,2914.0,2911.9,13.44048277]
[1769439288342,0.85792724,2914.0,2912.0,0.85851648]
[1769439288973,0.85792724,2914.0,2911.9,14.29900763]
[1769439289177,1.78824101,2913.9,2912.0,1.77332995]
[1769439290358,0.85798613,2913.8,2912.0,1.77332995]
[1769439290567,14.28481554,2913.8,2912.0,1.77332995]
[1769439291884,13.42682941,2913.6,2912.0,1.77332995]
[1769439292073,13.42682941,2913.6,2911.5,13.17275157]
[1769439292379,14.28490389,2913.5,2911.5,14.03141191]
[1769439293771,1.78824101,2913.9,2911.7,13.17275157]
[1769439294092,1.78824101,2913.9,2911.5,0.85866034]
[1769439294093,14.28478357,2914.0,2911.9,13.17275157]
[1769439294460,13.42682941,2913.8,2911.7,0.001]
[1769439294678,13.42682941,2913.6,2911.7,0.001]
[1769439295191,13.42682941,2913.6,2911.7,3.43540985]
[1769439295491,13.42682941,2913.6,2911.8,0.85855518]
[1769439295662,1.41458294,2913.5,2911.9,0.4293965]
[1769439296088,1.41458294,2913.5,2911.9,1.28793143]
[1769439296288,1.41458294,2913.5,2911.9,14.460683]
[1769439296513,0.85798613,2913.8,2911.9,14.460683]
[1769439296989,0.85798613,2913.8,2911.9,13.60214807]
[1769439297197,14.28481554,2913.8,2911.9,13.60214807]
[1769439297696,14.28481554,2913.8,2911.9,0.4293965]
[1769439297906,14.28481554,2913.8,2911.7,0.001]
[1769439298660,13.42682941,2913.4,2911.7,0.001]
[1769439298863,13.42682941,2913.2,2911.7,0.001]
[1769439299097,13.42682941,2912.8,2911.7,0.001]
[1769439299315,13.42682941,2912.8,2910.6,14.03166544]
[1769439299482,13.42682941,2912.6,2910.7,1.40316654]
[1769439299811,13.42682941,2912.6,2910.7,2.26206423]
[1769439300096,13.42682941,2912.6,2910.8,0.85884717]
[1769439300302,1.35548294,2912.7,2911.2,13.17275157]
[1769439300601,0.85822176,2913.0,2911.4,13.17275157]
[1769439300978,14.28505117,2913.0,2911.1,0.85875795]
[1769439301174,13.42682941,2912.8,2910.7,1.40316654]
[1769439301373,13.42682941,2912.8,2911.0,13.17275157]
[1769439301579,14.85421235,2912.7,2911.1,1.4031576]
[1769439301785,1.42738294,2912.7,2910.9,14.03157729]
[1769439302098,13.42682941,2912.8,2910.9,13.17275157]
[1769439302301,13.42682941,2912.8,2910.7,14.57591811]
[1769439302614,0.128,2913.4,2911.4,14.03143461]
[1769439302898,0.85807448,2913.5,2911.4,14.03143461]
[1769439303113,14.28488713,2913.6,2911.5,13.17275157]
[1769439303405,1.42848871,2913.5,2911.7,13.17275157]
[1769439303697,0.85805772,2913.6,2911.7,13.17275157]
[1769439304296,13.42682941,2914.0,2911.7,13.17275157]
[1769439304297,0.98595669,2913.9,2911.9,13.17275157]
[1769439304498,14.2847725,2914.0,2912.1,13.17275157]
[1769439304722,1.81453823,2913.9,2912.2,2.55373268]
[1769439305024,1.81453823,2913.9,2912.2,5.47527516]
[1769439306094,1.81453823,2913.9,2912.3,13.17275157]
[1769439306999,1.81453823,2913.9,2912.4,14.03115014]
[1769439307199,0.4289327,2914.1,2912.4,14.03115014]
[1769439307400,14.28465118,2914.4,2912.4,14.03115014]
[1769439307964,14.28465118,2914.4,2912.4,13.17275157]
[1769439308247,13.42682941,2914.2,2912.2,1.69527516]
[1769439308408,13.42682941,2914.0,2911.9,13.17275157]
[1769439308598,13.42682941,2913.8,2911.9,13.17275157]
[1769439308908,1.35548294,2913.7,2912.2,13.17275157]
[1769439309112,0.85803249,2913.7,2912.0,2.1757845]
[1769439309300,0.85803249,2913.7,2912.0,15.34853607]
[1769439309651,0.85803249,2913.7,2912.0,15.34853526]
[1769439309809,3.43186125,2913.9,2912.0,15.34853526]
[1769439310001,0.85800292,2913.8,2912.0,15.34853526]
[1769439310202,0.42898642,2913.7,2912.2,13.17275157]
[1769439310922,14.14582941,2914.2,2912.2,13.17275157]
[1769439311130,0.8578978,2914.1,2912.3,14.03117961]
[1769439311433,0.8578978,2914.1,2912.3,13.17275157]
[1769439311948,0.85778006,2914.5,2912.3,13.17275157]
[1769439312110,14.28460947,2914.5,2912.3,13.17275157]
[1769439312312,15.19839127,2914.4,2912.4,14.57587108]
[1769439312495,15.19839127,2914.4,2912.4,1.40311951]
[1769439312696,15.19839127,2914.4,2912.2,14.03118162]
[1769439313004,15.19839127,2914.4,2912.2,13.17275157]
[1769439313005,14.28466834,2914.3,2912.2,13.17275157]
[1769439313332,14.28466834,2914.3,2912.2,14.03120589]
[1769439313905,14.28466834,2914.3,2912.3,10.15]
[1769439314411,14.28466834,2914.3,2912.3,23.32275157]
[1769439314611,1.94875859,2914.2,2912.4,15.59087216]
[1769439314807,15.375588,2914.2,2912.4,2.41812059]
[1769439315137,13.42682941,2914.0,2912.2,3.78]
[1769439317129,0.85791284,2914.1,2912.3,14.03117704]
[1769439317299,0.85785593,2914.3,2912.3,14.03117704]
[1769439317501,0.85785593,2914.3,2912.3,13.17275157]
[1769439317502,13.42682941,2914.2,2912.3,13.17275157]
[1769439317701,1.50036853,2914.1,2912.4,1.69527516]
[1769439318206,1.50036853,2914.1,2912.4,14.9772513]
[1769439319138,2.35827551,2914.1,2912.5,13.37923442]
[1769439319635,2.35826919,2914.1,2912.6,3.78]
[1769439319817,0.90891542,2914.0,2912.7,1.71592344]
[1769439320009,0.90891542,2914.0,2912.8,3.78]
[1769439321651,1.76684456,2914.0,2912.8,3.78]
[1769439322438,1.76684456,2914.0,2912.9,3.78]
[1769439322439,14.98740909,2914.0,2912.9,3.78]
[1769439323731,1.76685895,2914.0,2912.9,3.78]
[1769439323957,0.74179089,2913.9,2912.9,3.78]
[1769439324947,13.96235542,2913.9,2912.9,3.78]
[1769439325343,14.07855066,2913.8,2912.9,3.78]
[1769439325646,13.22056453,2913.8,2912.3,13.37923442]
[1769439325845,13.22056453,2913.8,2912.2,3.78]
[1769439326026,1.48203139,2913.7,2912.3,14.39423442]
[1769439326227,1.59974932,2913.9,2912.3,15.25265902]
[1769439326552,1.59974932,2913.9,2912.3,14.39423442]
[1769439326787,1.59974932,2913.9,2912.3,15.25264934]
[1769439326937,0.74179089,2913.9,2912.6,13.37923442]
[1769439327118,0.85792058,2914.1,2912.6,13.37923442]
[1769439327324,14.79945152,2914.2,2912.6,14.23757208]
[1769439327568,14.08043549,2914.2,2912.6,14.23757208]
[1769439327868,0.85987096,2914.2,2912.6,13.37923442]
[1769439328171,0.128,2914.0,2912.7,3.78]
[1769439328321,13.22056453,2913.7,2911.9,3.78]
[1769439328522,13.22056453,2913.5,2912.0,3.78]
[1769439328721,1.39395645,2913.4,2912.0,3.78]
[1769439328950,14.61452098,2913.4,2912.0,3.78]
[1769439329323,14.61452098,2913.4,2911.8,3.78]
[1769439329324,0.85813338,2913.3,2911.8,3.78]
[1769439330251,14.07869791,2913.3,2911.8,3.78]
[1769439330655,14.07869791,2913.3,2911.7,0.001]
[1769439330868,15.18298332,2913.2,2911.7,0.001]
[1769439331349,13.22056453,2913.0,2911.7,0.001]
[1769439331660,0.719,2912.9,2911.7,0.001]
[1769439331832,13.22056453,2912.8,2911.7,0.001]
[1769439333455,14.07887468,2912.7,2911.7,0.001]
[1769439333655,0.82447057,2912.6,2911.7,0.001]
[1769439335865,1.68281388,2912.6,2911.7,0.001]
[1769439336266,1.68281526,2912.6,2911.7,0.001]
[1769439336771,2.82059433,2913.2,2911.7,13.38023442]
[1769439337078,0.85817554,2913.2,2911.7,17.16023442]
[1769439337642,3.43244817,2913.4,2911.7,17.16023442]
[1769439337845,3.43244817,2913.4,2911.8,13.37923442]
[1769439339039,3.43244817,2913.4,2911.7,3.781]
[1769439339040,0.85809218,2913.5,2912.0,13.37923442]
[1769439339245,1.57809218,2913.5,2912.1,15.09515786]
[1769439339443,0.85809218,2913.5,2912.1,15.09515786]
[1769439339655,3.43224869,2913.6,2912.1,15.09515786]
[1769439340175,16.65281322,2913.6,2911.9,3.78]
[1769439340748,16.65281322,2913.6,2912.0,13.37923442]
[1769439341175,0.85798613,2913.8,2912.0,13.37923442]
[1769439341381,0.85798613,2913.8,2912.1,13.37923442]
[1769439341686,0.002,2913.9,2912.2,14.23766979]
[1769439341850,0.002,2913.9,2912.4,13.37923442]
[1769439343984,0.002,2913.9,2912.4,14.23762556]
[1769439344884,0.002,2913.9,2912.4,13.37923442]
[1769439345059,0.002,2913.9,2912.4,14.23763203]
[1769439345266,0.002,2913.9,2912.4,13.37923442]
[1769439345619,0.002,2913.9,2912.5,1.51810014]
[1769439345902,0.002,2913.9,2912.4,13.37923442]
[1769439347293,0.002,2913.9,2912.2,0.85845629]
[1769439347294,13.22256453,2913.9,2912.2,14.23769042]
[1769439347500,13.22256453,2913.9,2912.3,14.23765327]
[1769439347781,0.85798613,2913.8,2912.3,13.37923442]
[1769439347955,14.79954316,2913.9,2912.3,14.23765312]
[1769439348159,1.47995432,2913.8,2912.4,15.14638225]
[1769439349764,0.85801558,2913.7,2912.4,15.14638225]
[1769439350164,1.47995432,2913.8,2912.4,16.00477389]
[1769439350387,0.002,2913.9,2912.4,16.00477389]
[1769439350976,0.85995915,2913.9,2912.4,15.14638225]
[1769439352109,0.002,2913.9,2912.5,3.78]
[1769439352657,0.002,2913.9,2912.5,17.60935501]
[1769439353102,13.71472834,2913.9,2912.5,17.60935501]
[1769439353346,1.71465551,2913.8,2912.5,17.60935501]
[1769439353484,15.42738385,2913.8,2912.6,3.78]
[1769439354049,0.85996584,2913.9,2912.4,21.06051437]
[1769439354198,0.85996584,2913.9,2911.9,0.001]
[1769439354199,0.002,2913.9,2912.7,14.6876432]
[1769439354383,0.002,2913.9,2912.9,13.82935501]
[1769439355434,0.85995816,2913.9,2912.8,1.81209487]
[1769439355586,0.85995816,2913.9,2912.5,13.82935501]
[1769439355785,0.002,2913.9,2912.5,13.82935501]
[1769439356812,0.002,2913.9,2912.5,14.68771304]
[1769439357127,0.002,2913.9,2912.5,13.82935501]
[1769439357486,0.002,2913.9,2912.5,14.687704]
[1769439357686,1.44537283,2913.9,2912.6,1.4697704]
[1769439358000,0.002,2913.6,2912.6,1.4697704]
[1769439358211,0.002,2913.6,2912.6,15.29912541]
[1769439359632,0.002,2913.6,2912.6,1.4697704]
[1769439359926,0.002,2913.6,2912.6,13.83035501]
[1769439360280,0.002,2913.6,2912.6,14.68868808]
[1769439360483,0.002,2913.9,2912.7,13.82935501]
[1769439361156,0.85995759,2913.9,2912.6,0.001]
[1769439361337,0.002,2913.9,2912.6,14.68869419]
[1769439361516,0.002,2913.9,2912.8,13.82935501]
[1769439362144,0.002,2913.9,2912.8,14.68762219]
[1769439362353,0.002,2913.9,2912.8,14.68762794]
[1769439362659,0.002,2913.9,2912.8,13.82935501]
[1769439363016,0.002,2913.9,2912.8,14.68763032]
[1769439363220,0.002,2913.9,2913.0,13.82935501]
[1769439363540,0.002,2914.4,2913.2,13.82935501]
[1769439366072,0.002,2914.4,2912.9,1.95897281]
[1769439366278,0.002,2914.4,2912.6,0.001]
[1769439366279,13.71272834,2914.0,2912.6,0.001]
[1769439366548,13.71272834,2913.8,2912.6,0.001]
[1769439367117,1.37127283,2913.9,2912.6,0.001]
[1769439367118,13.71272834,2913.6,2912.6,0.001]
[1769439367318,13.71272834,2913.4,2911.3,13.82935501]
[1769439367525,13.71272834,2913.2,2911.3,13.82935501]
[1769439367851,2.776392,2913.3,2911.0,14.68816277]
[1769439367852,13.71272834,2913.0,2911.0,14.68816277]
[1769439368144,0.85828069,2912.8,2911.1,16.15694543]
[1769439368538,0.85828069,2912.8,2911.1,16.15694469]
[1769439368733,0.85828069,2912.8,2911.1,15.29817129]
[1769439369619,14.57100903,2912.8,2911.1,15.29817129]
[1769439370213,1.09491747,2912.9,2911.1,16.15694648]
[1769439370420,0.98610393,2913.4,2911.3,13.82935501]
[1769439370830,14.69883227,2913.4,2911.3,13.82935501]
[1769439371635,14.69883227,2913.4,2911.3,13.83035501]
[1769439372237,0.128,2913.7,2911.5,13.82935501]
[1769439372440,15.09680117,2913.6,2911.7,13.82935501]
[1769439372639,13.71272834,2913.4,2911.7,13.82935501]
[1769439373420,14.43172834,2913.4,2911.7,13.82935501]
[1769439374216,14.57086172,2913.3,2911.7,13.82935501]
[1769439374650,13.71272834,2913.1,2911.3,13.83035501]
[1769439374843,13.71272834,2913.1,2911.3,0.001]
[1769439375445,13.71272834,2913.1,2911.3,13.83035501]
[1769439375643,1.08211747,2913.2,2911.3,13.83035501]
[1769439375644,1.08211747,2913.2,2911.5,13.82935501]
[1769439375858,0.85813338,2913.3,2911.7,13.82935501]
[1769439376151,3.43241712,2913.4,2911.7,13.82935501]
[1769439376653,0.128,2913.3,2911.7,13.82935501]
[1769439378628,0.85816284,2913.2,2911.7,13.82935501]
[1769439379430,14.11497881,2913.2,2911.3,12.93437439]
[1769439379758,15.74337899,2913.1,2911.4,1.37931113]
[1769439379929,15.74337899,2913.1,2911.4,14.31268552]
[1769439380327,13.25681597,2914.3,2911.9,12.93337439]
[1769439380534,0.85780123,2914.5,2912.5,12.95413707]
[1769439380736,0.85969976,2914.8,2912.9,12.93337439]
[1769439381046,0.85969976,2914.8,2912.5,0.85835803]
[1769439381246,13.25681597,2914.5,2912.5,13.79173242]
[1769439381431,0.719,2914.6,2912.7,12.93337439]
[1769439381633,0.85969892,2914.8,2912.9,12.93337439]
[1769439381935,0.85969268,2914.8,2913.1,12.93337439]
[1769439382152,0.002,2914.8,2913.1,12.93337439]
[1769439382354,0.002,2914.8,2913.3,12.93337439]
[1769439382771,0.002,2914.8,2913.5,12.93337439]
[1769439385465,0.002,2914.8,2913.7,12.93337439]
[1769439385679,0.002,2915.0,2913.8,0.2335703]
[1769439385877,0.002,2915.5,2914.3,12.93337439]
[1769439387657,0.002,2915.5,2914.5,12.93337439]
[1769439387853,0.002,2915.5,2914.6,14.22671183]
[1769439389880,0.002,2915.5,2914.6,1.29333744]
[1769439390047,0.002,2915.5,2914.2,12.93337439]
[1769439390575,0.002,2915.5,2914.4,12.93337439]
[1769439390878,0.002,2915.5,2914.0,0.2335703]
[1769439391087,0.002,2915.5,2914.0,12.93337439]
[1769439391253,0.002,2915.5,2914.1,12.93337439]
[1769439391468,0.002,2915.5,2913.7,0.2335703]
[1769439391469,0.002,2915.5,2914.3,12.93337439]
[1769439392447,0.002,2916.2,2914.7,12.93337439]
[1769439392669,0.002,2916.2,2914.9,12.93337439]
[1769439392944,0.002,2916.2,2915.0,0.2335703]
[1769439393144,0.002,2916.2,2915.3,12.93337439]